fUSD/lending_fUSD_20260518
["ID","MTS","AMOUNT","RATE_DAILY","PERIOD"]
[422541437,1779043843000,-155.57,0.00028931,7]
[422541432,1779043843000,-306.08,0.00028915,2]
[422541435,1779043843000,-420.91,0.00028915,2]
[422541427,1779043843000,-155.23,0.00028888,2]
[422541471,1779043843000,-153.15,0.00029072,30]
[422541484,1779043843000,-306.08,0.00029137,7]
[422541473,1779043843000,-422.06,0.00029074,30]
[422541509,1779043843000,-306.71,0.00029232,7]
[422541513,1779043843000,-181.73994664,0.00029235,7]
[422541511,1779043843000,-153.27,0.00029232,2]
[422541512,1779043843000,-155.57,0.00029232,30]
[422541514,1779043843000,-153.10219616,0.00029235,7]
[422541510,1779043843000,-420.97,0.00029232,7]
[422541515,1779043843000,-150.54389862,0.00029235,7]
[422541516,1779043843000,-324.88,0.000293,7]
[422541518,1779043843000,-3543.0,0.0002949,2]
[422541519,1779043843000,-1354.0,0.0002949,2]
[422541521,1779043843000,-150.0,0.0002949,2]
[422541517,1779043843000,-927.0,0.0002949,2]
[422541520,1779043843000,-1270.0,0.0002949,2]
[422541508,1779043843000,-155.29,0.00029232,30]
[422541523,1779043843000,-417.0,0.0002949,2]
[422541525,1779043843000,-3632.0,0.0002949,2]
[422541526,1779043843000,-150.0,0.00029534,2]
[422541524,1779043843000,-150.0,0.0002949,2]
[422541528,1779043843000,-64475.0,0.000298,2]
[422541534,1779043843000,-1927.0,0.000301,7]
[422541529,1779043843000,-150.0,0.000299,30]
[422541535,1779043843000,-2000.0,0.00030107,14]
[422541531,1779043843000,-215.0785988,0.0003,30]
[422541527,1779043843000,-177.0,0.00029784,2]
[422541536,1779043843000,-2000.0,0.00030117,14]
[422541532,1779043843000,-711.47565024,0.00030087,14]
[422541533,1779043843000,-2000.0,0.00030097,14]
[422541472,1779043843000,-306.08,0.00029074,30]
[422541522,1779043843000,-150.0,0.0002949,2]
[422541500,1779043843000,-5629.37,0.000292,14]
[422541530,1779043843000,-650.0,0.0003,2]
[422541504,1779043843000,-420.91,0.00029201,2]
[422541507,1779043843000,-153.24,0.00029232,2]
[422541474,1779043843000,-306.67,0.00029074,30]
[422541477,1779043843000,-155.57,0.00029103,30]
[422541475,1779043843000,-420.91,0.00029074,30]
[422541476,1779043843000,-155.23,0.00029103,30]
[422541481,1779043843000,-420.91,0.00029105,2]
[422541488,1779043843000,-155.23,0.00029146,2]
[422541483,1779043843000,-153.15,0.00029112,2]
[422541485,1779043843000,-422.06,0.00029137,7]
[422541490,1779043843000,-153.09,0.00029152,7]
[422541487,1779043843000,-420.91,0.00029137,7]
[422541489,1779043843000,-155.57,0.00029146,2]
[422541486,1779043843000,-306.67,0.00029137,7]
[422541491,1779043843000,-153.15,0.00029152,7]
[422541478,1779043843000,-306.08,0.00029105,2]
[422541482,1779043843000,-153.09,0.00029112,2]
[422541493,1779043843000,-422.06,0.00029169,30]
[422541498,1779043843000,-153.09,0.00029192,30]
[422541494,1779043843000,-306.67,0.00029169,30]
[422541502,1779043843000,-422.06,0.00029201,2]
[422541499,1779043843000,-153.15,0.00029192,30]
[422541501,1779043843000,-306.08,0.00029201,2]
[422541497,1779043843000,-155.57,0.00029189,7]
[422541505,1779043843000,-306.21,0.00029232,7]
[422541496,1779043843000,-155.23,0.00029189,7]
[422541503,1779043843000,-306.67,0.00029201,2]
[422541492,1779043843000,-306.08,0.00029169,30]
[422541495,1779043843000,-420.91,0.00029169,30]
[422541506,1779043843000,-422.08,0.00029232,7]
[422541573,1779043844000,-1915.0,0.00031139,30]
[422541576,1779043844000,-460.0,0.00031164,30]
[422541577,1779043844000,-613.0,0.00031164,30]
[422541587,1779043844000,-150.0,0.00031395,30]
[422541569,1779043844000,-360.59349188,0.0003098,30]
[422541567,1779043844000,-5530.0,0.000306,3]
[422541572,1779043844000,-225.03,0.00031096,2]
[422541570,1779043844000,-150.0,0.00031011,2]
[422541571,1779043844000,-200.0,0.00031096,2]
[422541575,1779043844000,-160.0,0.00031164,30]
[422541574,1779043844000,-214.0,0.00031164,30]
[422541579,1779043844000,-174.0,0.00031164,30]
[422541582,1779043844000,-158.0,0.00031164,30]
[422541580,1779043844000,-429.0,0.00031164,30]
[422541586,1779043844000,-740.51,0.000312,7]
[422541584,1779043844000,-227.745,0.000312,7]
[422541578,1779043844000,-154.0,0.00031164,30]
[422541585,1779043844000,-158.85,0.000312,7]
[422541581,1779043844000,-158.0,0.00031164,30]
[422541588,1779043844000,-5530.0,0.000314,5]
[422541589,1779043844000,-360.59349188,0.00031401,30]
[422541596,1779043844000,-545.21983991,0.00031504,7]
[422541592,1779043844000,-324.88,0.000315,7]
[422541568,1779043844000,-5629.37,0.000308,14]
[422541599,1779043844000,-242.02873107,0.00031504,7]
[422541583,1779043844000,-151.0,0.00031164,30]
[422541566,1779043844000,-218.2062508,0.00030596,7]
[422541551,1779043844000,-429.0,0.00030164,30]
[422541564,1779043844000,-306.20439232,0.00030596,7]
[422541591,1779043844000,-220.02262786,0.00031455,7]
[422541538,1779043844000,-2000.0,0.00030127,14]
[422541537,1779043844000,-2000.0,0.00030127,14]
[422541539,1779043844000,-151.29,0.00030136,30]
[422541541,1779043844000,-200.0,0.00030137,2]
[422541543,1779043844000,-360.59349188,0.00030137,30]
[422541542,1779043844000,-2000.0,0.00030137,14]
[422541547,1779043844000,-460.0,0.00030164,30]
[422541540,1779043844000,-192.14,0.00030137,2]
[422541550,1779043844000,-174.0,0.00030164,30]
[422541544,1779043844000,-1915.0,0.00030139,30]
[422541549,1779043844000,-154.0,0.00030164,30]
[422541546,1779043844000,-160.0,0.00030164,30]
[422541548,1779043844000,-613.0,0.00030164,30]
[422541545,1779043844000,-214.0,0.00030164,30]
[422541563,1779043844000,-198.38055013,0.00030596,7]
[422541558,1779043844000,-1493.0,0.00030239,2]
[422541562,1779043844000,-363.47989327,0.00030596,7]
[422541556,1779043844000,-150.0,0.00030205,2]
[422541557,1779043844000,-1350.3132814,0.00030228,2]
[422541560,1779043844000,-500.0,0.00030478,2]
[422541552,1779043844000,-158.0,0.00030164,30]
[422541561,1779043844000,-360.59349188,0.00030558,30]
[422541554,1779043844000,-151.0,0.00030164,30]
[422541559,1779043844000,-1373.76050686,0.000304,2]
[422541553,1779043844000,-158.0,0.00030164,30]
[422541555,1779043844000,-2732.94,0.000302,2]
[422541565,1779043844000,-301.08779724,0.00030596,7]
[422541598,1779043844000,-203.08477273,0.00031504,7]
[422541605,1779043844000,-221.73968462,0.00031504,7]
[422541595,1779043844000,-225.04571766,0.00031504,7]
[422541627,1779043844000,-168.54697983,0.00032109,7]
[422541630,1779043844000,-158.20188361,0.00032109,7]
[422541631,1779043844000,-473.73283489,0.00032109,7]
[422541632,1779043844000,-159.8992,0.00032109,7]
[422541629,1779043844000,-179.11887911,0.00032109,7]
[422541628,1779043844000,-185.60704055,0.00032109,7]
[422541635,1779043844000,-726.95978654,0.00032109,7]
[422541636,1779043844000,-319.41220866,0.00032109,7]
[422541643,1779043844000,-154.52280179,0.00032109,7]
[422541640,1779043844000,-158.39108512,0.00032109,5]
[422541638,1779043844000,-484.05746213,0.00032109,7]
[422541637,1779043844000,-406.16954546,0.00032109,7]
[422541625,1779043844000,-440.04525572,0.00032059,7]
[422541644,1779043844000,-166.96541698,0.00032109,7]
[422541639,1779043844000,-598.986305,0.00032109,2]
[422541641,1779043844000,-223.16480838,0.00032109,7]
[422541642,1779043844000,-507.98154857,0.00032109,7]
[422541646,1779043844000,-185.14723158,0.00032109,7]
[422541649,1779043844000,-612.40878464,0.00032109,7]
[422541647,1779043844000,-201.96423388,0.00032109,7]
[422541593,1779043844000,-1000.0,0.000315,7]
[422541648,1779043844000,-157.54115395,0.00032109,7]
[422541651,1779043844000,-190.13852254,0.00032109,7]
[422541654,1779043844000,-215.02825997,0.00032109,7]
[422541652,1779043844000,-156.01710442,0.00032109,7]
[422541653,1779043844000,-151.96399372,0.00032109,7]
[422541645,1779043844000,-595.1416504,0.00032109,7]
[422541626,1779043844000,-196.46327907,0.00032109,7]
[422541650,1779043844000,-221.83742877,0.00032109,7]
[422541624,1779043844000,-517.23056625,0.00032059,7]
[422541634,1779043844000,-184.87486867,0.00032109,7]
[422541597,1779043844000,-159.70610433,0.00031504,7]
[422541594,1779043844000,-236.86641745,0.00031504,7]
[422541602,1779043844000,-396.76110027,0.00031504,7]
[422541600,1779043844000,-299.4931525,0.00031504,2]
[422541601,1779043844000,-253.99077428,0.00031504,7]
[422541607,1779043844000,-451.63169585,0.00031504,7]
[422541603,1779043844000,-459.30658848,0.00031504,7]
[422541606,1779043844000,-265.6487373,0.00031504,7]
[422541609,1779043844000,-179.5234613,0.00031504,7]
[422541604,1779043844000,-220.89522212,0.00031504,7]
[422541608,1779043844000,-215.45807391,0.00031504,7]
[422541610,1779043844000,-436.4125016,0.00031504,7]
[422541590,1779043844000,-258.61528313,0.00031455,7]
[422541620,1779043844000,-200.0,0.00032055,2]
[422541621,1779043844000,-343.70574825,0.00032059,7]
[422541633,1779043844000,-450.09143531,0.00032109,7]
[422541623,1779043844000,-178.1811765,0.00032059,7]
[422541617,1779043844000,-5000.0,0.00031807,2]
[422541615,1779043844000,-5000.0,0.00031807,2]
[422541612,1779043844000,-150.0,0.00031716,2]
[422541622,1779043844000,-151.47830152,0.00032059,7]
[422541614,1779043844000,-5000.0,0.00031807,2]
[422541613,1779043844000,-6598.12339915,0.00031807,2]
[422541611,1779043844000,-1000.0,0.00031614,6]
[422541616,1779043844000,-5000.0,0.00031807,2]
[422541619,1779043844000,-700.0,0.00032,2]
[422541618,1779043844000,-360.59349188,0.00031823,30]
[422541677,1779043845000,-161.55434706,0.00032109,7]
[422541676,1779043845000,-175.97877426,0.00032109,7]
[422541679,1779043845000,-352.47026693,0.00032109,7]
[422541684,1779043845000,-460.0,0.00032164,30]
[422541692,1779043845000,-1493.0,0.0003221,5]
[422541683,1779043845000,-160.0,0.00032164,30]
[422541685,1779043845000,-613.0,0.00032164,30]
[422541693,1779043845000,-161.0,0.00032235,120]
[422541695,1779043845000,-1314.0,0.0003224,2]
[422541694,1779043845000,-500.0,0.00032235,120]
[422541686,1779043845000,-154.0,0.00032164,30]
[422541688,1779043845000,-429.0,0.00032164,30]
[422541689,1779043845000,-158.0,0.00032164,30]
[422541687,1779043845000,-174.0,0.00032164,30]
[422541690,1779043845000,-158.0,0.00032164,30]
[422541691,1779043845000,-151.0,0.00032164,30]
[422541698,1779043845000,-1000.0,0.00032336,4]
[422541708,1779043845000,-360.59349188,0.00032666,30]
[422541697,1779043845000,-5629.37,0.000323,14]
[422541675,1779043845000,-447.37723393,0.00032109,7]
[422541696,1779043845000,-360.59349188,0.00032244,30]
[422541672,1779043845000,-204.24285983,0.00032109,7]
[422541700,1779043845000,-927.0,0.0003249,2]
[422541671,1779043845000,-415.32245721,0.00032109,7]
[422541657,1779043845000,-531.2974746,0.00032109,7]
[422541658,1779043845000,-175.1957288,0.00032109,7]
[422541655,1779043845000,-441.79044424,0.00032109,7]
[422541656,1779043845000,-443.47936924,0.00032109,7]
[422541659,1779043845000,-329.30981595,0.00032109,7]
[422541664,1779043845000,-430.91614782,0.00032109,7]
[422541660,1779043845000,-207.59705649,0.00032109,7]
[422541661,1779043845000,-447.44202931,0.00032109,7]
[422541665,1779043845000,-343.30517599,0.00032109,7]
[422541678,1779043845000,-178.17530338,0.00032109,7]
[422541663,1779043845000,-193.84876851,0.00032109,7]
[422541666,1779043845000,-158.1460391,0.00032109,7]
[422541669,1779043845000,-654.6187524,0.00032109,7]
[422541668,1779043845000,-156.44708187,0.00032109,7]
[422541670,1779043845000,-203.2657453,0.00032109,7]
[422541674,1779043845000,-153.56552418,0.00032109,7]
[422541673,1779043845000,-190.01953399,0.00032109,7]
[422541682,1779043845000,-214.0,0.00032164,30]
[422541680,1779043845000,-157.35959517,0.00032109,7]
[422541681,1779043845000,-1915.0,0.00032139,30]
[422541667,1779043845000,-359.04692259,0.00032109,7]
[422541701,1779043845000,-3543.0,0.0003249,2]
[422541662,1779043845000,-602.17559447,0.00032109,7]
[422541706,1779043845000,-150.0,0.00032562,2]
[422541734,1779043845000,-200.0,0.00033185,10]
[422541731,1779043845000,-158.0,0.00033164,30]
[422541730,1779043845000,-429.0,0.00033164,30]
[422541732,1779043845000,-158.0,0.00033164,30]
[422541733,1779043845000,-151.0,0.00033164,30]
[422541735,1779043845000,-150.0,0.00033302,2]
[422541739,1779043845000,-740.51,0.000335,7]
[422541737,1779043845000,-1000.0,0.00033406,8]
[422541736,1779043845000,-1000.0,0.00033398,17]
[422541727,1779043845000,-613.0,0.00033164,30]
[422541738,1779043845000,-2026.03406632,0.00033407,7]
[422541741,1779043845000,-324.88,0.000336,30]
[422541740,1779043845000,-360.59349188,0.00033509,30]
[422541743,1779043845000,-5629.37,0.000337,14]
[422541744,1779043845000,-1676.20143689,0.00033759,7]
[422541742,1779043845000,-170.95,0.00033695,2]
[422541747,1779043845000,-150.0,0.0002349,2]
[422541746,1779043845000,-313.43,0.00012179,2]
[422541748,1779043845000,-175.01,0.00025234,30]
[422541749,1779043845000,-175.01,0.00025523,2]
[422541745,1779043845000,-138186.72784239,0.00033778,7]
[422541723,1779043845000,-1915.0,0.00033139,30]
[422541699,1779043845000,-170.95,0.0003236,2]
[422541724,1779043845000,-214.0,0.00033164,30]
[422541726,1779043845000,-460.0,0.00033164,30]
[422541702,1779043845000,-1354.0,0.0003249,2]
[422541703,1779043845000,-1270.0,0.0003249,2]
[422541705,1779043845000,-3632.0,0.0003249,2]
[422541704,1779043845000,-417.0,0.0003249,2]
[422541710,1779043845000,-765.5109808,0.00032714,7]
[422541720,1779043845000,-150.0,0.00033083,2]
[422541721,1779043845000,-270.0,0.00033083,2]
[422541722,1779043845000,-360.59349188,0.00033087,30]
[422541709,1779043845000,-252.707999,0.000327,14]
[422541707,1779043845000,-227.745,0.00032621,14]
[422541712,1779043845000,-180.0,0.00032877,120]
[422541714,1779043845000,-1000.0,0.00032877,120]
[422541715,1779043845000,-158.20170629,0.00032941,2]
[422541718,1779043845000,-150.0,0.00033083,2]
[422541717,1779043845000,-1000.0,0.00033053,34]
[422541719,1779043845000,-150.0,0.00033083,2]
[422541716,1779043845000,-215.0785988,0.00033,7]
[422541725,1779043845000,-160.0,0.00033164,30]
[422541728,1779043845000,-154.0,0.00033164,30]
[422541729,1779043845000,-174.0,0.00033164,30]
[422541711,1779043845000,-752.71949309,0.00032714,7]
[422541761,1779043846000,-500.0,0.00013698,2]
[422541760,1779043846000,-13125.9591113,0.00011555,2]
[422541759,1779043846000,-704.43794619,0.00011555,2]
[422541757,1779043846000,-3028.66066665,0.00033778,7]
[422541755,1779043846000,-152.0,0.0003318,7]
[422541752,1779043846000,-25739.13632781,0.00033778,7]
[422541754,1779043846000,-152.0,0.00029728,30]
[422541753,1779043846000,-152.0,0.00018044,2]
[422541751,1779043846000,-150.0,0.0002649,2]
[422541763,1779043846000,-295.87292286,0.00013698,2]
[422541756,1779043846000,-152.0,0.00033226,7]
[422541762,1779043846000,-500.0,0.00013698,2]
[422541750,1779043846000,-175.01,0.00025811,7]
[422541765,1779043846000,-500.0,0.00013698,2]
[422541776,1779043846000,-8853.94073721,0.0002948,10]
[422541773,1779043846000,-504.0,0.00028764,3]
[422541767,1779043846000,-500.0,0.00013698,2]
[422541774,1779043846000,-1706.54851332,0.0002948,10]
[422541769,1779043846000,-930.0,0.0002349,2]
[422541764,1779043846000,-204.12707714,0.00013698,2]
[422541772,1779043846000,-504.0,0.0002795,2]
[422541770,1779043846000,-930.0,0.0002649,2]
[422541766,1779043846000,-500.0,0.00013698,2]
[422541775,1779043846000,-2604.0,0.0002948,10]
[422541771,1779043846000,-504.0,0.00027137,2]
[422541768,1779043846000,-291.72783795,0.00013698,2]
[422541778,1779043848000,150.0,0.000162,120]
[422541779,1779044034000,169.41,0.00026006,120]
[422541780,1779044040000,153.95,8.648e-05,2]
[422541781,1779044183000,300.0,0.000116,4]
[422541782,1779044185000,600.0,0.000117,4]
[422541783,1779044187000,900.0,0.000118,4]
[422541784,1779044189000,1300.0,0.000119,4]
[422541785,1779044228000,393.78,0.000162,120]
[422541786,1779044418000,354.4,0.000162,120]
[422541787,1779044554000,200.0,0.000116,4]
[422541789,1779044556000,500.0,0.000117,4]
[422541790,1779044558000,800.0,0.000118,4]
[422541791,1779044560000,1000.0,0.000119,4]
[422541793,1779044608000,318.96,0.000152,120]
[422541794,1779044798000,287.07,0.000152,120]
[422541795,1779044853000,700.0,0.000116,4]
[422541796,1779044855000,1048.43045089,0.000117,4]
[422541797,1779044866000,153.95,5.708e-05,2]
[422541800,1779044971000,-150.0,0.00011239,2]
[422541801,1779044971000,-34.16869408,0.0001127,2]
[422541799,1779044971000,-153.95,0.00011191,2]
[422541798,1779044971000,-150.729223,0.00011135,2]
[422541802,1779044987000,258.36,0.00015,120]
[422541815,1779045031000,-157.92692553,0.0001127,2]
[422541817,1779045031000,-141.38872328,0.00011304,2]
[422541816,1779045031000,-200.18729751,0.00011303,2]
[422541819,1779045031000,-291.3090786,0.0001139,2]
[422541820,1779045031000,-1200.0,0.00011399,2]
[422541818,1779045031000,-13003.80427753,0.00011304,2]
[422541821,1779045031000,-5000.0,0.000114,2]
[422541822,1779045031000,-91004.45715291,0.000114,2]
[422541823,1779045031000,-332.7359301,0.000114,2]
[422541824,1779045031000,-1610.89109739,0.000114,2]
[422541825,1779045031000,-8416.80960234,0.000114,2]
[422541959,1779045043000,-230.77568615,0.00011304,2]
[422541961,1779045043000,-500.0,0.00011399,2]
[422541962,1779045043000,-500.0,0.00011399,2]
[422541963,1779045043000,-197.69246454,0.00011399,2]
[422541960,1779045043000,-500.0,0.00011399,2]
[422541966,1779045043000,-500.0,0.00011399,2]
[422541967,1779045043000,-106.16370435,0.00011399,2]
[422541965,1779045043000,-208.14307777,0.00011399,2]
[422541968,1779045043000,-393.83629565,0.00011399,2]
[422541969,1779045043000,-109247.68762171,0.000114,2]
[422541964,1779045043000,-291.85692223,0.00011399,2]
[422541980,1779045045000,-1141.6,0.000114,2]
[422541981,1779045046000,-9326.49,0.000114,2]
[422541985,1779045112000,-38049.0,0.000114,2]
[422541984,1779045112000,-151.0,0.00011397,2]
[422541986,1779045176000,232.53,0.00015,120]
[422541987,1779045181000,2000.0,0.0003013,120]
[422541988,1779045199000,159.298074,0.00029685,120]
[422541989,1779045209000,709.75,0.00011074,2]
[422541990,1779045224000,2000.0,0.0003013,120]
[422541991,1779045231000,2000.0,0.0003013,120]
[422541992,1779045267000,2000.0,0.0003013,120]
[422541993,1779045275000,2000.0,0.0003013,120]
[422541994,1779045311000,2000.0,0.0003013,120]
[422541995,1779045367000,209.27,0.00015,120]
[422541996,1779045557000,188.35,0.00015,120]
[422541998,1779045676000,-184.509,0.00011074,2]
[422541997,1779045676000,-1346.426,0.00011074,2]
[422541999,1779045677000,767.709577,0.00011018,2]
[422542000,1779045746000,169.51,0.00015,120]
[422542001,1779045809000,1575.38657752,0.00011074,2]
[422542002,1779045810000,277.01511986,0.00011074,2]
[422542003,1779045937000,152.56,0.00015,120]
[422542004,1779046024000,600.0,0.000107,3]
[422542005,1779046026000,1200.0,0.000108,3]
[422542006,1779046028000,1800.0,0.000109,3]
[422542007,1779046126000,150.0,0.00015,120]
[422542008,1779046144000,1000.0,0.00030129,120]
[422542019,1779046231000,-355.29916273,0.00011199,2]
[422542009,1779046231000,-304.82030262,0.00011074,2]
[422542011,1779046231000,-1391.42230505,0.000111,2]
[422542013,1779046231000,-7004.21714613,0.000111,2]
[422542010,1779046231000,-186.864,0.00011074,2]
[422542012,1779046231000,-400.0,0.000111,2]
[422542014,1779046231000,-1200.0,0.00011198,2]
[422542022,1779046231000,-5000.0,0.000112,2]
[422542016,1779046231000,-1000.0,0.00011199,2]
[422542015,1779046231000,-300.0,0.00011198,2]
[422542018,1779046231000,-150.0,0.00011199,2]
[422542020,1779046231000,-1253.09284893,0.000112,2]
[422542021,1779046231000,-14421.832,0.000112,2]
[422542017,1779046231000,-1200.0,0.00011199,2]
[422542023,1779046232000,-9888.79119615,0.000112,2]
[422542025,1779046232000,-133325.7319716,0.000112,2]
[422542026,1779046232000,-427.65,0.000112,2]
[422542028,1779046232000,-8475.41891671,0.000112,2]
[422542027,1779046232000,-5980.02198027,0.000112,2]
[422542029,1779046232000,-5941.17315993,0.000112,2]
[422542024,1779046232000,-380.53367357,0.000112,2]
[422542056,1779046238000,-1172.52474171,0.000112,2]
[422542139,1779046240000,-40452.92053555,0.000112,2]
[422542137,1779046240000,-800.30798175,0.000112,2]
[422542138,1779046240000,-62657.84549931,0.000112,2]
[422542141,1779046240000,-289.5,0.000112,2]
[422542143,1779046240000,-417.72054126,0.000112,2]
[422542144,1779046240000,-436292.01292026,0.000113,2]
[422542142,1779046240000,-1238151.88975575,0.000112,2]
[422542140,1779046240000,-2325.01545742,0.000112,2]
[422542158,1779046243000,-834.84277497,0.000113,2]
[422542157,1779046243000,-1851.19636187,0.000113,2]
[422542156,1779046243000,-3537.84523101,0.000113,2]
[422542155,1779046243000,-661.03999474,0.000113,2]
[422542164,1779046246000,-100000.0,0.000113,2]
[422542181,1779046254000,152.0,8.812e-05,2]
[422542184,1779046302000,-150.0,0.00011199,2]
[422542185,1779046305000,-150.0,0.00011199,2]
[422542186,1779046307000,-150.0,0.00011199,2]
[422542187,1779046310000,-50.0,0.00011199,2]
[422542188,1779046310000,-100.0,0.00011199,2]
[422542189,1779046315000,150.0,0.000149,120]
[422542190,1779046391000,173.07,0.00027411,120]
[422542193,1779046409000,186.865,0.00010976,2]
[422542192,1779046409000,1725.778,0.00010976,2]
[422542191,1779046409000,152.0,8.776e-05,2]
[422542392,1779046504000,150.0,0.000149,120]
[422542393,1779046520000,5066.77593493,0.00030136,120]
[422542396,1779046621000,1172.5248,0.00011,2]
[422542397,1779046623000,258.30369282,0.000109,2]
[422542398,1779046634000,7696.1845198,0.00011,2]
[422542399,1779046692000,150.0,0.000149,120]
[422542401,1779046824000,6734.16145486,0.00011,2]
[422542404,1779046882000,150.0,0.000149,120]
[422542406,1779046964000,583.39,0.00010963,2]
[422542407,1779047009000,1537.741,0.00010878,2]
[422542408,1779047009000,182.189,0.00010878,2]
[422542409,1779047014000,5892.39127295,0.00011,2]
[422542410,1779047017000,682.54,0.00010879,2]
[422542411,1779047072000,150.0,0.000149,120]
[422542412,1779047091000,152.0,8.776e-05,2]
[422542415,1779047204000,5155.84236384,0.00011,2]
[422542416,1779047207000,-272.81473303,0.00011064,2]
[422542417,1779047225000,400.0,0.000106,3]
[422542418,1779047227000,800.0,0.000107,3]
[422542419,1779047229000,1300.0,0.000108,3]
[422542420,1779047231000,1700.0,0.000109,3]
[422542421,1779047261000,150.0,0.000148,120]
[422542423,1779047291000,500.0,0.00010971,2]
[422542422,1779047291000,500.0,0.00010971,2]
[422542424,1779047292000,500.0,0.00010971,2]
[422542425,1779047292000,500.0,0.00010971,2]
[422542427,1779047292000,500.0,0.00010971,2]
[422542428,1779047292000,392.65031015,0.00010971,2]
[422542426,1779047292000,500.0,0.00010971,2]
[422542432,1779047293000,380.0,0.00010971,2]
[422542431,1779047293000,500.0,0.00010971,2]
[422542430,1779047293000,500.0,0.00010971,2]
[422542429,1779047293000,500.0,0.00010971,2]
[422542433,1779047319000,1500000.0,0.00011,2]
[422542434,1779047340000,1000.0,0.00030135,120]
[422542435,1779047348000,1134.9893546,0.00010971,2]
[422542436,1779047348000,367.18619809,0.00010971,2]
[422542438,1779047348000,186.80573571,0.00010971,2]
[422542437,1779047348000,988.83702913,0.00010971,2]
[422542439,1779047395000,4511.36206836,0.00011,2]
[422542445,1779047432000,-1763.91224766,0.00011099,2]
[422542442,1779047432000,-559.24546046,0.00011064,2]
[422542443,1779047432000,-300.0,0.00011098,2]
[422542441,1779047432000,-1167.93980651,0.00011064,2]
[422542447,1779047432000,-700.19088126,0.00011099,2]
[422542446,1779047432000,-448.87485434,0.00011099,2]
[422542444,1779047432000,-1200.0,0.00011098,2]
[422542450,1779047432000,-708.24423702,0.00011099,2]
[422542448,1779047432000,-982.80761298,0.00011099,2]
[422542501,1779047440000,-999.99,0.0001123,2]
[422542490,1779047440000,-151.0,0.0001123,2]
[422542499,1779047440000,-9999.99,0.0001123,2]
[422542496,1779047440000,-4999.99,0.0001123,2]
[422542492,1779047440000,-384.259255,0.0001123,2]
[422542497,1779047440000,-499.99,0.0001123,2]
[422542498,1779047440000,-24999.99,0.0001123,2]
[422542500,1779047440000,-9999.99,0.0001123,2]
[422542495,1779047440000,-384.259255,0.0001123,2]
[422542510,1779047440000,-682.54,0.00011695,2]
[422542493,1779047440000,-384.259255,0.0001123,2]
[422542502,1779047440000,-299.99,0.0001123,2]
[422542504,1779047440000,-208.48490792,0.0001126,2]
[422542507,1779047440000,-1502.36,0.00011449,2]
[422542512,1779047440000,-682.54,0.00011967,2]
[422542508,1779047440000,-186.2,0.00011549,2]
[422542506,1779047440000,-682.54,0.00011423,2]
[422542515,1779047440000,-255.0,0.00012153,2]
[422542514,1779047440000,-16776.16048546,0.00012111,2]
[422542491,1779047440000,-151.0,0.0001123,2]
[422542494,1779047440000,-384.259255,0.0001123,2]
[422542489,1779047440000,-151.0,0.0001123,2]
[422542484,1779047440000,-238.24377584,0.00011229,2]
[422542481,1779047440000,-5266.1,0.00011222,2]
[422542511,1779047440000,-215.0785988,0.00011704,2]
[422542466,1779047440000,-150.0,0.00011099,2]
[422542468,1779047440000,-875.89626483,0.000111,2]